[Event "CCT Chessable Masters D-II 2024"]
[Site "Online"]
[Date "2024.02.03"]
[Round "2"]
[White "Nakamura, Hikaru"]
[Black "Sibelephant"]
[Result "0-1"]
[ECO "C45"]
[WhiteElo "2788"]
[BlackElo "2791"]
[Annotator "TA"]
[PlyCount "98"]
[EventDate "2024.01.12"]
[EventType "k.o."]
[EventCountry "NET"]
[SourceTitle "playchess.com"]
[Source "ChessBase"]
[SourceQuality "1"]
[TimeControl "600+2"]

{[%evp 19,98,-90,-95,-77,-75,-81,-10,-27,-20,-78,-92,-95,-98,-122,-113,-149,-121,-129,-116,-110,-79,-134,-135,-180,-142,-190,-148,-226,-232,-264,-258,-250,-238,-245,-238,-274,-260,-263,-261,-273,-278,-278,-275,-285,-266,-256,-214,-217,-206,-240,-231,-258,-107,-100,-81,-156,-83,-89,-100,-107,-113,-87,-115,-126,-103,-113,-136,-125,-113,-154,-145,-149,-161,-251,-247,-245,-245,-997,-981,-981,-952]} 1. e4 {[%emt 0:00:04]} e5 {[%emt 0:02:51]} 2. Nf3 {[%emt 0:00:03]} Nc6 {[%emt 0:00:02]} 3. d4 {[%emt 0:00:04]} exd4 {[%emt 0:00:04]} 4. Nxd4 {[%emt 0:00:02]} Bc5 {[%emt 0:00:05]} 5. Nxc6 {[%emt 0:00:05]} Qf6 {[%emt 0:00:07]} 6. Be3 {[%emt 0:00:35] C45: Scotch Game.} Bxe3 {[%emt 0:00:11]} 7. fxe3 {[%emt 0:00:02]} bxc6 {[%emt 0:01:00]} 8. Qd4 {[%emt 0:00:16]} c5 {[%emt 0:00:38]} 9. Qc3 {[%emt 0:03:26]} Rb8 $146 {[%emt 0:00:22]} ({Predecessor:} 9... Qh4+ 10. Kd2 Nf6 11. Qe5+ Kd8 12. Bd3 Re8 13. Qxc5 Nxe4+ 14. Bxe4 Qxe4 15. Rg1 Re5 {0-1 Kollmer,O (1029)-Hasanovic,A (1339) GER-chT U12 Magdeburg 2023 (7.1)}) 10. e5 {[%emt 0:00:12]} Qh4+ {[%emt 0:00:03]} 11. g3 {[%emt 0:00:03]} Qe4 {[%emt 0:00:13]} 12. Rg1 {[%emt 0:00:03]} Qb4 {[%emt 0:00:05]} (12... Rxb2 $17 13. Rg2 Qb4 14. Qxb4 Rxb4 (14... cxb4 15. Kd1 $16)) 13. b3 {[%emt 0:00:17]} (13. Qxb4 {simplifies} cxb4 14. Nd2 Ne7 15. Nc4) 13... Ne7 {[%emt 0:00:03]} 14. a3 {[%emt 0:00:08] [#]} (14. Qxb4 $11 {remains equal.} cxb4 (14... Rxb4 15. Nc3 $11) 15. a3) 14... Qxc3+ $1 $17 {[%emt 0:00:06]} 15. Nxc3 {[%emt 0:00:02]} Ng6 {[%emt 0:00:03]} 16. Nb5 {[%emt 0:00:22]} Nxe5 {[%emt 0:00:15]} 17. O-O-O {[%emt 0:00:04]} Rb7 {[%emt 0:00:11]} 18. a4 {[%emt 0:00:11]} a6 {[%emt 0:00:21]} 19. Na3 {[%emt 0:00:11]} Rb8 {[%emt 0:00:10]} 20. Be2 {[%emt 0:00:18]} (20. Nc4 $142 f6 21. Nxe5 fxe5 22. Bc4) 20... d6 $17 {[%emt 0:00:04]} 21. Kb2 {[%emt 0:00:03]} Ke7 {[%emt 0:00:03]} 22. Rd2 {[%emt 0:00:05]} (22. Nc4 $17 {was called for.} Nxc4+ 23. Bxc4) 22... Bg4 {[%emt 0:00:06]} 23. Bxa6 {[%emt 0:00:07]} (23. Nc4 $17 Bxe2 24. Nxe5 dxe5 25. Rxe2) 23... Nf3 $19 {[%emt 0:00:03]} 24. Rgg2 {[%emt 0:00:03]} Nxd2 {[%emt 0:00:03]} 25. Rxd2 {[%emt 0:00:02]} Be6 {[%emt 0:00:05]} 26. Be2 {[%emt 0:00:04]} d5 {[%emt 0:00:04]} 27. Kc3 {[%emt 0:00:18]} c6 {[%emt 0:00:04]} 28. Rd1 {[%emt 0:00:07]} Rhd8 {[%emt 0:00:03]} 29. Bd3 {[%emt 0:00:03]} f5 {[%emt 0:00:03]} 30. Ra1 {[%emt 0:00:05]} Kd6 {[%emt 0:00:06]} 31. Nb1 {[%emt 0:00:04]} g5 {[%emt 0:00:12]} 32. Nd2 {[%emt 0:00:03]} Ke5 {[%emt 0:00:02]} 33. Nf3+ {[%emt 0:00:03]} Kf6 {[%emt 0:00:03]} 34. Rf1 {[%emt 0:00:02]} h6 {[%emt 0:00:08]} 35. g4 {[%emt 0:00:04]} f4 {[%emt 0:00:10]} (35... fxg4 36. Nd4+ Ke7 37. Nxc6+ Kd6 38. Nxd8 Rxd8 39. Rf6 $11) (35... Re8 $19 {has better winning chances. White must now prevent ...Bd7.} 36. Ng1 c4 37. bxc4 dxc4 38. Bxf5 Bxf5 39. Rxf5+ Kg6) 36. exf4 $17 {[%emt 0:00:05]} gxf4 {[%emt 0:00:05]} (36... Bxg4 37. fxg5+ hxg5 38. Nd4+ Ke7 (38... Kg7 $2 39. Nxc6 d4+ 40. Kb2 $18) 39. Nxc6+ Kd6 40. Nxd8 (40. Nxb8 Rxb8 41. a5 Bd7 $18) 40... Rxd8 41. Rg1 $18) 37. h3 {[%emt 0:00:07]} (37. Nh4 $142) 37... d4+ {[%emt 0:00:08]} ({Black should play} 37... Ra8 {[%cal Oc5c4] Threatens to win with ...c4!} 38. Ne1 h5 39. gxh5 Ke7 (39... Bxh3 40. Rxf4+ Ke7 41. h6 $11)) 38. Kd2 $17 {[%emt 0:00:04]} c4 {[%emt 0:00:03]} 39. bxc4 {[%emt 0:00:11] [#]} Rb4 $1 {[%emt 0:00:03]} 40. Nh4 {[%emt 0:00:04]} Bxc4 {[%emt 0:00:06]} 41. Rxf4+ {[%emt 0:00:08]} Kg5 {[%emt 0:00:02]} 42. Ng2 {[%emt 0:00:02]} Bxd3 {[%emt 0:00:04]} ({Weaker is} 42... Rxa4 43. h4#) 43. Kxd3 {[%emt 0:00:03]} Rxa4 {[%emt 0:00:09]} 44. Rf5+ {[%emt 0:00:04]} Kg6 {[%emt 0:00:02]} 45. Nf4+ {[%emt 0:00:02]} Kh7 {[%emt 0:00:03]} 46. Rf7+ {[%emt 0:00:04]} (46. h4 $142) 46... Kg8 $19 {[%emt 0:00:03]} 47. Rc7 {[%emt 0:00:03]} Ra3+ {[%emt 0:00:04]} 48. Ke4 $2 {[%emt 0:00:06]} (48. Kd2) 48... Re3+ $19 {[%emt 0:00:03]} 49. Kf5 {[%emt 0:00:02]} Rf8+ {[%emt 0:00:03]} 0-1

[Event "CCT Chessable Masters D-II 2024"]
[Site "Online"]
[Date "2024.02.03"]
[Round "2"]
[White "LevonAronian"]
[Black "Sevian, Samuel"]
[Result "1-0"]
[ECO "D45"]
[WhiteElo "2759"]
[BlackElo "2697"]
[Annotator "TA"]
[PlyCount "83"]
[EventDate "2024.01.12"]
[EventType "k.o."]
[EventCountry "NET"]
[SourceTitle "playchess.com"]
[Source "ChessBase"]
[SourceQuality "1"]
[TimeControl "600+2"]

{[%evp 15,83,45,38,22,53,57,53,52,45,56,64,49,54,38,60,48,69,65,63,66,116,117,106,120,159,153,172,158,149,43,109,108,114,93,95,45,79,74,104,111,121,110,117,39,149,94,100,98,119,98,889,806,988,970,29960,29963,29960,29961,29967,29966,5800,839,29989,29987,29991,29976,29974,29977,29977,29978]} 1. d4 {[%emt 0:00:04]} Nf6 {[%emt 0:00:04]} 2. c4 {[%emt 0:00:02]} e6 {[%emt 0:00:03]} 3. Nf3 {[%emt 0:00:01]} d5 {[%emt 0:00:01]} 4. Nc3 {[%emt 0:00:02]} c6 {[%emt 0:00:15]} 5. e3 {[%emt 0:00:05]} Be7 {[%emt 0:00:01]} 6. Bd3 {[%emt 0:00:11]} dxc4 {[%emt 0:00:01]} 7. Bxc4 {[%emt 0:00:01]} b5 {[%emt 0:00:01]} 8. Bd3 {[%emt 0:00:05]} Bb7 {[%emt 0:00:01]} 9. O-O {[%emt 0:00:07]} a6 {[%emt 0:00:52]} 10. e4 {[%emt 0:01:11]} c5 {[%emt 0:00:04]} 11. dxc5 {[%emt 0:00:02] White is slightly better.} Nc6 {[%emt 0:01:23][%cal Of6d7]} 12. Be3 {[%emt 0:00:19]} Ng4 {[%emt 0:00:03]} 13. Bf4 {[%emt 0:00:02]} Bxc5 {[%emt 0:00:08]} 14. h3 {[%emt 0:00:01]} Nf6 {[%emt 0:01:25]} 15. Rc1 {[%emt 0:00:02][%cal Oc3b5]} Bb6 {[%emt 0:00:50]} 16. Qe2 {[%emt 0:01:26] aiming for Rfd1.} O-O {[%emt 0:00:32][%cal Oe6e5]} 17. e5 {[%emt 0:00:05]} Nh5 {[%emt 0:01:40]} (17... Nd5 $14 18. Qe4 g6) 18. Be3 $16 {[%emt 0:00:20]} Bxe3 {[%emt 0:00:42]} 19. Qxe3 {[%emt 0:00:00] Black must now prevent Rfd1.} Nb4 {[%emt 0:00:06]} 20. Rfd1 {[%emt 0:00:29][%cal Od3h7] And now Bxh7+! would win.} Nxd3 {[%emt 0:00:29]} 21. Rxd3 {[%emt 0:00:02]} Qe7 {[%emt 0:00:03]} 22. Ne4 {[%emt 0:01:01]} ({White should play} 22. Rcd1 $1 $16 {Threatens to win with Rd7.} Bxf3 23. Rd7 (23. Qxf3 Qg5 $14) (23. gxf3 Qh4 $15)) 22... Bxe4 {[%emt 0:00:03]} (22... f6 $14) 23. Qxe4 {[%emt 0:00:02]} g6 {[%emt 0:00:00] Black is weak on the dark squares} 24. Rd6 {[%emt 0:00:45]} Ng7 {[%emt 0:00:05]} 25. Nd4 {[%emt 0:00:01] White has more active pieces.} (25. g4 $16) 25... Nf5 {[%emt 0:00:09]} 26. Nxf5 {[%emt 0:00:02]} exf5 {[%emt 0:00:00]} 27. Qd4 {[%emt 0:00:02]} Rfe8 {[%emt 0:00:10]} 28. f4 {[%emt 0:00:03]} a5 {[%emt 0:00:19]} 29. a3 {[%emt 0:00:51]} ({White should try} 29. Rc5 $16) 29... Rab8 {[%emt 0:00:03] [#]} (29... Rac8 $14 30. Rcc6 Qb7) 30. b4 {[%emt 0:00:07]} ({Better is} 30. Rd7 $1 {[%cal Rd7e7]} Red8 31. e6 fxe6 32. Rcc7 (32. Rxe7 Rxd4 33. Rcc7 Rxf4 $16)) 30... axb4 {[%emt 0:00:01]} 31. axb4 {[%emt 0:00:01]} Rbc8 {[%emt 0:00:11]} 32. Rc5 {[%emt 0:00:03]} Qa7 $2 {[%emt 0:00:14][%mdl 8192] [#] This move loses the game for Black.} (32... Rb8 $16 33. Kh2 Rb7) 33. e6 $1 $18 {[%emt 0:00:28] Rd7 would kill now.} (33. Rxb5 Qxd4+ 34. Rxd4 Re7 $16) 33... Ra8 {[%emt 0:01:00]} 34. Kh2 {[%emt 0:00:51]} (34. Rxb5 Qxd4+ 35. Rxd4 Ra1+ 36. Kh2 Rxe6 $11) 34... Qe7 {[%emt 0:00:08]} 35. exf7+ {[%emt 0:00:27]} Qxf7 {[%emt 0:00:00]} 36. Rd7 {[%emt 0:00:01]} Re4 {[%emt 0:00:01]} 37. Qd3 {[%emt 0:00:52]} Re3 {[%emt 0:00:00]} 38. Qxb5 {[%emt 0:00:10]} ({Less strong is} 38. Qxe3 Qxd7 39. Qb3+ Qf7 $18) (38. Qd6 $142 Rae8 39. Rxf7 Kxf7 40. Rxb5) 38... Qe6 {[%emt 0:00:04]} 39. Qb7 {[%emt 0:00:08] White mates.} Re8 {[%emt 0:00:05]} 40. Rg7+ {[%emt 0:00:06]} Kf8 {[%emt 0:00:01]} 41. Rxh7 {[%emt 0:00:03][%csl Gh7][%cal Rb7g7]} Qf6 {[%emt 0:00:02]} 42. Rcc7 {[%emt 0:00:04] Weighted Error Value: White=0.14 (very precise) /Black=0.55.  Loses game:     	---       	Black=1      Mistake:       	White=4     	Black=3      Inaccurate:     	---       	Black=4      OK:         	White=11    	Black=3      Best:        	White=1     	Black=2      Strong:       	White=1     	---} 1-0

[Event "CCT Chessable Masters D-II 2024"]
[Site "Online"]
[Date "2024.02.03"]
[Round "2"]
[White "Keymer, Vincent"]
[Black "jefferyx"]
[Result "1/2-1/2"]
[ECO "A34"]
[WhiteElo "2743"]
[BlackElo "2692"]
[Annotator "TA"]
[PlyCount "101"]
[EventDate "2024.01.12"]
[EventType "k.o."]
[EventCountry "NET"]
[SourceTitle "playchess.com"]
[Source "ChessBase"]
[SourceQuality "1"]
[TimeControl "600+2"]

{[%evp 53,101,-775,-714,-771,-724,-753,-753,-794,-759,-800,-742,-783,-776,-784,-792,-766,-733,-872,-773,-832,-673,-827,-656,-725,0,-908,-877,-937,-874,-880,0,-877,0,-831,-752,-758,-736,-795,-373,-427,-419,-476,-147,-77,0,-468,0,-57,0,-439]} 1. Nf3 {[%emt 0:00:04]} c5 {[%emt 0:00:04]} 2. c4 {[%emt 0:00:01]} Nf6 {[%emt 0:00:02]} 3. Nc3 {[%emt 0:00:01]} d5 {[%emt 0:00:01]} 4. cxd5 {[%emt 0:00:01]} Nxd5 {[%emt 0:00:00]} 5. e4 {[%emt 0:00:01]} Nb4 {[%emt 0:00:03]} 6. Bc4 {[%emt 0:00:01]} Nd3+ {[%emt 0:00:03]} 7. Ke2 {[%emt 0:00:01]} Nf4+ {[%emt 0:00:08] A34: Symmetrical English: 2 Nc3, lines with ...d5.} 8. Kf1 {[%emt 0:00:01]} Nd3 {[%emt 0:00:22]} 9. Qe2 {[%emt 0:00:02]} Nxc1 {[%emt 0:00:02]} 10. Rxc1 {[%emt 0:00:00]} e6 {[%emt 0:00:05]} 11. h4 {[%emt 0:00:02]} Bd7 $146 {[%emt 0:01:30]} ({Predecessor:} 11... a6 12. e5 b5 13. Bd3 Ra7 14. a4 Rd7 15. Bb1 b4 16. Ne4 Bb7 17. Qe3 Nc6 {1-0 Vidit,S (2731)-Svidler,P (2683) Nagpur m2 Rapid 2023 (1)}) 12. h5 {[%emt 0:00:57]} Bc6 {[%emt 0:00:31]} 13. Ne5 {[%emt 0:01:13]} Bd6 {[%emt 0:00:22]} 14. Nxc6 {[%emt 0:00:03]} Nxc6 {[%emt 0:00:01]} 15. Bb5 {[%emt 0:00:00]} Rc8 {[%emt 0:01:57]} 16. e5 {[%emt 0:00:04]} Bb8 {[%emt 0:00:01]} 17. h6 {[%emt 0:00:09]} g5 {[%emt 0:01:31]} 18. Ne4 {[%emt 0:02:28]} Qd4 {[%emt 0:00:02]} 19. Rxc5 {[%emt 0:01:14]} Bxe5 {[%emt 0:00:17]} 20. Rh5 {[%emt 0:01:34]} f5 {[%emt 0:01:17]} 21. Rxg5 {[%emt 0:00:20]} Ke7 {[%emt 0:00:59]} 22. Bxc6 {[%emt 0:01:52]} bxc6 {[%emt 0:00:00]} 23. f4 {[%emt 0:00:11]} Bf6 {[%emt 0:00:30]} 24. Nxf6 {[%emt 0:00:22]} Qxc5 {[%emt 0:00:01]} 25. Rg7+ {[%emt 0:00:05]} Kxf6 {[%emt 0:00:01]} 26. Qh5 {[%emt 0:00:01]} Qc4+ {[%emt 0:00:01]} 27. Kg1 {[%emt 0:00:06]} Qd4+ {[%emt 0:00:07]} (27... Qxa2 28. Qh4#) 28. Kh1 {[%emt 0:00:01]} Qxf4 {[%emt 0:00:00]} 29. Rf7+ {[%emt 0:00:01]} Ke5 {[%emt 0:00:01]} 30. Qe2+ {[%emt 0:00:00]} Qe4 {[%emt 0:00:18]} 31. Qf2 {[%emt 0:00:01]} c5 {[%emt 0:00:20]} 32. Qg3+ {[%emt 0:00:03]} Qf4 {[%emt 0:00:10]} 33. Qc3+ {[%emt 0:00:01]} Kd6 $1 {[%emt 0:00:07]} 34. Qd3+ {[%emt 0:00:03]} Qd4 {[%emt 0:00:00]} 35. Qa6+ {[%emt 0:00:01]} Rc6 {[%emt 0:00:03]} 36. Qxa7 {[%emt 0:00:01]} Qh4+ {[%emt 0:00:01]} (36... Qxb2 37. Qd7+ (37. Rxh7 $2 Rxh7 38. Qxh7 Qxd2 $19) 37... Ke5 38. Qxc6 Qxd2 39. Qxc5+ Ke4 40. Qc4+ Ke5 41. Rc7 $11) 37. Kg1 {[%emt 0:00:01]} Qe1+ {[%emt 0:00:00]} (37... Qxh6 38. Qd7+ Ke5 39. Qxc6 Qxd2 40. Qxc5+ Kf4 41. Qf2+ Qxf2+ 42. Kxf2 $11) 38. Kh2 {[%emt 0:00:01]} Qh4+ {[%emt 0:00:02]} (38... Qxd2 39. Qd7+ (39. Rxh7 $2 Rxh7 40. Qxh7 Qf4+ 41. g3 Qf2+ 42. Kh1 Rb6 $19) 39... Ke5 40. Qxd2 $18) 39. Kg1 {[%emt 0:00:00]} Rd8 {[%emt 0:00:01]} (39... Qxh6 40. Qd7+ Ke5 41. Qxc6 Qxd2 42. Qxc5+ Ke4 43. Qc6+ Ke5 44. Kh2 $11) 40. Rxh7 {[%emt 0:00:06]} Qe1+ {[%emt 0:00:01]} 41. Kh2 {[%emt 0:00:01]} Qh4+ {[%emt 0:00:01]} 42. Kg1 {[%emt 0:00:01]} Qe1+ {[%emt 0:00:12]} 43. Kh2 {[%emt 0:00:00]} Qe5+ {[%emt 0:00:00]} 44. Kh1 {[%emt 0:00:03]} Qf6 {[%emt 0:00:02]} (44... Qxb2 45. Qe7+ Kd5 46. Qxd8+ Ke4 47. Qh4+ f4 48. Rd7 $18) 45. Kg1 {[%emt 0:00:03]} f4 {[%emt 0:00:06]} (45... Qxb2 46. Qe7+ Kd5 47. Qxd8+ Rd6 48. Rd7 Qd4+ 49. Kh1 Qa1+ 50. Kh2 Qe5+ 51. Kh3 Rxd7 52. Qxd7+ Kc4 53. Qb7 $18 (53. h7 Qf6 $18)) (45... Qd4+ $142 46. Kh2 Qf4+ (46... Qxb2 $2 47. Qe7+ Kd5 48. Qxd8+ Kc4 49. Rg7 $18) 47. Kg1 Qxd2) 46. Rf7 $19 {[%emt 0:00:03]} Qh4 {[%emt 0:00:04]} (46... Qxb2 47. Qe7+ (47. Rxf4 $2 Qxd2 48. Qf7 Rc7 $19) 47... Kd5 48. Qxd8+ Rd6 49. Qa8+ Kc4 50. Rxf4+ (50. h7 Qd4+ 51. Kh2 Rd8 $18) 50... Rd4 51. Qa4+ Kd5 52. Rxd4+ cxd4 53. Qb3+ Qxb3 54. axb3) 47. h7 {[%emt 0:00:01] [#]} Qe1+ $2 {[%emt 0:00:01]} (47... Ke5 $1 $19 {has better winning chances.} 48. a4 Rh8 (48... Rxd2 49. Qb8+ Kd5 50. Rd7+ Ke4 51. Rxd2 $11)) 48. Kh2 $17 {[%emt 0:00:00]} Qh4+ $2 {[%emt 0:00:00][%mdl 8192]} (48... Qxd2 $2 49. Qe7+ (49. Rd7+ Rxd7 50. Qb8+ Rcc7 $11) 49... Ke5 50. Rf8 Rxf8 51. Qxf8 $18) (48... Rcc8 $17 49. Qe7+ Kd5) 49. Kg1 $19 {[%emt 0:00:01] [#]} Qe1+ $2 {[%emt 0:00:07]} (49... Ke5 $1 $19 {[%cal Oc6c8] White must now prevent ...Rcc8!} 50. a4 Rh8 (50... Rxd2 51. Qb8+ Kd5 52. Rd7+ Ke4 53. Rxd2 $11)) 50. Kh2 $15 {[%emt 0:00:00]} Qh4+ $2 {[%emt 0:00:03][%mdl 8192]} (50... Qxd2 $2 {is the wrong capture.} 51. Qe7+ (51. Rd7+ Rxd7 52. Qb8+ Rcc7 $16) 51... Ke5 52. Rf8 Rxf8 53. Qxf8 $18) (50... Rcc8 $15 51. Qe7+ Kd5) 51. Kg1 {[%emt 0:00:01]} 1/2-1/2

[Event "CCT Chessable Masters D-II 2024"]
[Site "Online"]
[Date "2024.02.03"]
[Round "2"]
[White "Sevian, Samuel"]
[Black "LevonAronian"]
[Result "1/2-1/2"]
[ECO "C65"]
[WhiteElo "2697"]
[BlackElo "2767"]
[Annotator "TA"]
[PlyCount "94"]
[EventDate "2024.01.12"]
[EventType "k.o."]
[EventCountry "NET"]
[SourceTitle "playchess.com"]
[Source "ChessBase"]
[SourceQuality "1"]
[TimeControl "600+2"]

{[%evp 9,94,23,24,10,16,23,16,10,7,10,12,0,0,-2,0,-18,0,0,0,0,12,0,16,9,14,19,16,-14,-10,-25,-18,-39,-29,-109,-104,-131,-126,-118,-138,-137,-131,-223,-220,-214,-188,-169,-172,-247,-200,-204,-109,-106,-8,-9,-4,-10,-10,-17,-10,-10,-16,-70,-77,-75,0,0,0,0,0,0,0,0,0,0,0,0,0,0,0,0,0,0,0,0,0,0,0]} 1. e4 {[%emt 0:00:02]} e5 {[%emt 0:00:03]} 2. Nf3 {[%emt 0:00:03]} Nc6 {[%emt 0:00:01]} 3. Bb5 {[%emt 0:00:01]} Nf6 {[%emt 0:00:01]} 4. d3 {[%emt 0:00:01]} Bc5 {[%emt 0:00:01]} 5. Bxc6 {[%emt 0:00:02]} dxc6 {[%emt 0:00:01]} 6. Nbd2 {[%emt 0:00:02][%cal Od2c4]} (6. Nxe5 $2 Qd4 7. Be3 Qxe5 $19) 6... Be6 {[%emt 0:00:02]} 7. O-O {[%emt 0:00:01]} (7. Nxe5 $2 Qd4 8. Rf1 Qxe5 $19) 7... Bd6 {[%emt 0:00:02]} 8. Nb3 {[%emt 0:00:01]} b6 {[%emt 0:00:02]} 9. Bg5 {[%emt 0:00:02]} Qd7 {[%emt 0:00:01]} 10. Nbd2 {[%emt 0:01:22]} Ng4 {[%emt 0:00:29]} 11. Nc4 {[%emt 0:00:53]} Bxc4 {[%emt 0:00:14]} 12. dxc4 {[%emt 0:00:02]} Qe6 {[%emt 0:00:02]} 13. Qe2 {[%emt 0:00:17]} O-O {[%emt 0:00:28]} 14. Rad1 {[%emt 0:00:08]} Nf6 {[%emt 0:00:22][%cal Bg4f6,Bf6h5,Bh5f4][%mdl 32]} 15. b3 {[%emt 0:00:16]} h6 {[%emt 0:00:44]} 16. Bc1 {[%emt 0:00:14]} Rad8 {[%emt 0:00:34]} 17. h3 {[%emt 0:00:13]} Nh5 {[%emt 0:01:30]} 18. Nh4 {[%emt 0:02:50]} Nf4 {[%emt 0:00:04]} 19. Qf3 {[%emt 0:00:10]} g6 {[%emt 0:00:05] Inhibits Nf5.} 20. Rfe1 {[%emt 0:00:10]} Bb4 {[%emt 0:00:43]} 21. c3 {[%emt 0:00:09] [#]} (21. Rxd8 $11 {keeps the balance.} Rxd8 22. Rd1) 21... Rxd1 $1 $17 {[%emt 0:02:20]} 22. Rxd1 {[%emt 0:00:03]} Be7 {[%emt 0:00:00]} 23. Bxf4 {[%emt 0:00:49]} exf4 {[%emt 0:00:02]} 24. Qxf4 {[%emt 0:00:00] [#]} g5 $1 {[%emt 0:00:42]} 25. Qxc7 {[%emt 0:01:57]} (25. Qg3 $17 Bd6 (25... Qxe4 26. Qf3 $11) 26. Rxd6 (26. e5 $2 Bxe5 27. Qf3 gxh4 $19) 26... cxd6 (26... Qxd6 $2 27. Qxd6 cxd6 28. Nf5 $19) 27. Nf5) 25... gxh4 $19 {[%emt 0:00:07]} 26. Qxa7 {[%emt 0:00:01]} Qxe4 {[%emt 0:00:27]} 27. Qxb6 {[%emt 0:00:05]} Bf6 {[%emt 0:00:04] Inhibits Qd4.} 28. a4 {[%emt 0:00:11]} (28. Qe3 $142 Qxe3 29. fxe3) 28... Qe2 {[%emt 0:00:30]} 29. Rf1 {[%emt 0:00:15]} Rd8 {[%emt 0:00:01]} (29... Rc8 $19 30. Qa6 Qe6) 30. Qxc6 $17 {[%emt 0:00:05]} Rd1 {[%emt 0:00:04]} (30... Kg7 $17 {[%cal Od8d3] Strongly threatening ...Rd3!} 31. Qf3 Qxf3 32. gxf3 Bxc3) 31. Qc8+ $11 {[%emt 0:00:01]} Kg7 {[%emt 0:00:30]} 32. Qg4+ {[%emt 0:00:02]} Qxg4 {[%emt 0:00:01]} 33. hxg4 {[%emt 0:00:00][%mdl 4096] Endgame. KRB-KR} Rd3 {[%emt 0:00:02]} 34. Rc1 {[%emt 0:00:15]} Bxc3 {[%emt 0:00:07]} 35. Kf1 {[%emt 0:00:01]} ({White should play} 35. c5 $11) 35... Bd4 {[%emt 0:00:09][%cal Od3d2] And now ...Rd2! would win.} (35... Bb2 36. Rb1 Rd2 (36... Rxb3 37. a5 $16) 37. Re1 $17) 36. c5 {[%emt 0:00:11]} Rd2 {[%emt 0:00:16]} ({Better is} 36... Rxb3 $17 {...Be5 is the strong threat.} 37. c6 Rb8 (37... Rb2 $2 38. c7 $18)) 37. Rc4 {[%emt 0:00:07] The position is equal.} Rxf2+ {[%emt 0:00:16]} (37... Bxf2 38. c6 Bg3 39. c7 Bxc7 40. Rxc7 $18) 38. Ke1 {[%emt 0:00:01]} Bxc5 {[%emt 0:00:04]} 39. Rxc5 {[%emt 0:00:01]} Rxg2 {[%emt 0:00:01] KR-KR} 40. Rc3 {[%emt 0:00:02]} Kg6 {[%emt 0:00:05]} 41. b4 {[%emt 0:00:05]} Rb2 {[%emt 0:00:01]} (41... Rxg4 42. Rb3 $17) 42. b5 {[%emt 0:00:06]} Kg5 {[%emt 0:00:01]} 43. Kf1 {[%emt 0:00:07]} Kxg4 {[%emt 0:00:01] aiming for ...f5.} 44. Rc4+ {[%emt 0:00:01]} Kg3 {[%emt 0:00:02]} 45. Rc3+ {[%emt 0:00:00]} Kg4 {[%emt 0:00:01] Threatens to win with ...f5.} 46. Rc4+ {[%emt 0:00:02]} Kg3 {[%emt 0:00:01]} 47. Rc3+ {[%emt 0:00:05]} Kg4 {[%emt 0:00:01] And White is the lucky defender.   Weighted Error Value: White=0.13 (very precise) /Black=0.13 (very precise) .  Mistake:       	White=4     	Black=3      Inaccurate:     	White=1     	---        OK:         	White=16    	Black=14     Best:        	White=7     	Black=4      Strong:       	---       	Black=2} 1/2-1/2

[Event "CCT Chessable Masters D-II 2024"]
[Site "Online"]
[Date "2024.02.03"]
[Round "2"]
[White "jefferyx"]
[Black "Keymer, Vincent"]
[Result "0-1"]
[ECO "E32"]
[WhiteElo "2693"]
[BlackElo "2743"]
[Annotator "TA"]
[PlyCount "42"]
[EventDate "2024.01.12"]
[EventType "k.o."]
[EventCountry "NET"]
[SourceTitle "playchess.com"]
[Source "ChessBase"]
[SourceQuality "1"]
[TimeControl "600+2"]

{[%evp 12,42,15,0,0,4,35,24,23,0,0,-6,8,19,14,11,7,9,13,14,17,7,11,0,0,0,0,-76,-69,-312,-317,-1069,-1070]} 1. d4 {[%emt 0:00:03]} Nf6 {[%emt 0:00:04]} 2. c4 {[%emt 0:00:01]} e6 {[%emt 0:00:00]} 3. Nc3 {[%emt 0:00:01]} Bb4 {[%emt 0:00:01]} 4. Nf3 {[%emt 0:00:00]} d6 {[%emt 0:00:01]} 5. Qc2 {[%emt 0:00:01]} O-O {[%emt 0:00:02]} 6. a3 {[%emt 0:00:03]} Bxc3+ {[%emt 0:00:02]} 7. Qxc3 {[%emt 0:00:00]} Re8 {[%emt 0:00:01]} 8. g3 {[%emt 0:00:01]} e5 {[%emt 0:00:05]} 9. dxe5 {[%emt 0:02:53]} dxe5 {[%emt 0:00:00] White has an edge.} 10. Bg5 {[%emt 0:00:16]} (10. Nxe5 $5 Qe7 11. Bf4 $14) 10... Nc6 {[%emt 0:02:35]} 11. Bg2 {[%emt 0:00:46]} h6 {[%emt 0:00:03]} 12. Rd1 {[%emt 0:00:06]} Qe7 {[%emt 0:00:02]} 13. Bxf6 {[%emt 0:00:01]} Qxf6 {[%emt 0:00:01]} 14. b4 {[%emt 0:00:20]} Bg4 {[%emt 0:00:59]} 15. h3 {[%emt 0:00:08]} Bxf3 {[%emt 0:00:26]} 16. Bxf3 {[%emt 0:00:21]} (16. Qxf3 {simplifies} Qxf3 17. Bxf3 e4 18. Bg2) 16... Rad8 {[%emt 0:01:53]} 17. Bd5 {[%emt 0:02:30]} Nd4 {[%emt 0:00:18]} 18. Be4 {[%emt 0:00:43]} (18. Bxb7 $2 {too greedy.} c6 19. Rc1 Qf5 $19) 18... c6 {[%emt 0:00:57]} 19. h4 {[%emt 0:00:05] [#] Repels Qg5} (19. e3 $11) 19... Qe6 $1 $17 {[%emt 0:00:22] Black is more active.} 20. e3 $2 {[%emt 0:00:25]} (20. Rd2 $15) 20... Qg4 $19 {[%emt 0:00:13]} 21. Bd3 {[%emt 0:00:58] Prevents Qe2+.} (21. Qd3 f5 22. Bd5+ cxd5 23. exd4) 21... e4 {[%emt 0:00:22] Weighted Error Value: White=0.71/Black=0.03 (flawless) .  Loses game:     	White=1     	---        Mistake:       	White=2     	---        Inaccurate:     	---       	Black=1      OK:         	White=7     	Black=6      Best:        	---       	Black=1      Strong:       	---       	Black=1} 0-1